[Event "Grand Prix Romania 1st Stage 2024"]
[Site "Bucuresti"]
[Date "2024.03.24"]
[Round "8.18"]
[White "Bologan, Victor"]
[Black "Antal, Hunor-Zoltan"]
[Result "1/2-1/2"]
[ECO "B55"]
[WhiteElo "2594"]
[BlackElo "2272"]
[Annotator "RC"]
[PlyCount "179"]
[EventDate "2024.03.20"]
[EventType "swiss"]
[EventCountry "ROU"]
[SourceTitle "playchess.com"]
[Source "ChessBase"]
[SourceQuality "1"]
[TimeControl "900+5"]

1. e4 {[%emt 0:00:03]} c5 {[%emt 0:00:02]} 2. Nf3 {[%emt 0:00:01]} d6 {[%emt 0:00:01]} 3. d4 {[%emt 0:00:01]} cxd4 {[%emt 0:00:02]} 4. Nxd4 {[%emt 0:00:01]} Nf6 {[%emt 0:00:02]} 5. Bd3 {[%emt 0:00:01]} Nc6 {[%emt 0:00:02]} 6. Nxc6 {[%emt 0:00:02]} bxc6 {[%emt 0:00:01]} 7. O-O {[%emt 0:00:02]} g6 {[%emt 0:00:02]} 8. b3 {[%emt 0:00:02]} Bg7 {[%emt 0:00:03]} 9. Bb2 {[%emt 0:00:01]} O-O {[%emt 0:00:04]} 10. Nc3 {[%emt 0:00:01]} Nd7 {[%emt 0:00:17]} 11. Na4 {[%emt 0:00:04]} Qa5 {[%emt 0:02:34]} 12. Bxg7 {[%emt 0:01:00]} Kxg7 {[%emt 0:00:03]} 13. Qe2 {[%emt 0:00:26]} Nc5 {[%emt 0:00:58]} 14. Nb2 {[%emt 0:00:25]} Qc3 {[%emt 0:00:34]} 15. Rab1 {[%emt 0:00:03]} a5 {[%emt 0:00:35]} 16. Bc4 {[%emt 0:05:56]} a4 {[%emt 0:01:59]} 17. Nd3 {[%emt 0:00:05]} Nxd3 {[%emt 0:00:47]} 18. Bxd3 {[%emt 0:00:17]} axb3 {[%emt 0:00:12]} 19. cxb3 {[%emt 0:00:06]} c5 {[%emt 0:00:09]} 20. Rfd1 {[%emt 0:01:22]} Be6 {[%emt 0:00:45]} 21. Rbc1 {[%emt 0:00:25]} Qe5 {[%emt 0:00:35]} 22. Qd2 {[%emt 0:00:19]} Ra3 {[%emt 0:00:14]} 23. f4 {[%emt 0:00:39]} Qd4+ {[%emt 0:00:02]} 24. Kh1 {[%emt 0:00:04]} Rfa8 {[%emt 0:00:23]} 25. Rc2 {[%emt 0:00:16]} f6 {[%emt 0:00:47]} 26. Qe2 {[%emt 0:00:37]} Qb4 {[%emt 0:01:07]} 27. h3 {[%emt 0:00:13]} Bf7 {[%emt 0:00:23]} 28. Rdd2 {[%emt 0:00:10]} h5 {[%emt 0:01:24]} 29. Qf2 {[%emt 0:00:14]} Qd4 {[%emt 0:00:18]} 30. Qe2 {[%emt 0:00:07]} Bxb3 {[%emt 0:01:08]} 31. Bb5 {[%emt 0:00:46]} Qb4 {[%emt 0:01:28]} 32. axb3 {[%emt 0:00:05]} Ra1+ {[%emt 0:00:02]} 33. Kh2 {[%emt 0:00:05]} Qxb3 {[%emt 0:00:05]} 34. e5 {[%emt 0:02:34]} R8a3 {[%emt 0:00:01]} 35. exf6+ {[%emt 0:00:20]} Kxf6 {[%emt 0:00:01]} 36. Bd3 {[%emt 0:00:14]} Qb1 {[%emt 0:00:14]} 37. Qe4 {[%emt 0:00:19]} Qg1+ {[%emt 0:00:22]} 38. Kg3 {[%emt 0:00:03]} Qe1+ {[%emt 0:00:15]} 39. Qxe1 {[%emt 0:00:02]} Rxe1 {[%emt 0:00:01]} 40. Kf2 {[%emt 0:00:01]} Rb1 {[%emt 0:00:11]} 41. Bc4 {[%emt 0:00:20]} Rb4 {[%emt 0:00:05]} 42. Re2 {[%emt 0:00:19]} Raa4 {[%emt 0:00:06]} 43. Re6+ {[%emt 0:00:11]} Kf5 {[%emt 0:00:05]} 44. g4+ {[%emt 0:00:13]} hxg4 {[%emt 0:00:01]} 45. hxg4+ {[%emt 0:00:01]} Kxf4 {[%emt 0:00:07]} 46. Bd5 {[%emt 0:00:03]} Rd4 {[%emt 0:00:04]} 47. Bc6 {[%emt 0:00:01]} Rac4 {[%emt 0:00:03]} 48. Rce2 {[%emt 0:00:05]} g5 {[%emt 0:00:08]} 49. Rxe7 {[%emt 0:00:02]} Kxg4 {[%emt 0:00:01]} 50. Bf3+ {[%emt 0:00:07]} Kf5 {[%emt 0:00:05]} 51. Kg3 {[%emt 0:00:13]} Rc3 {[%emt 0:00:04]} 52. Kg2 {[%emt 0:00:06]} Rf4 {[%emt 0:00:07]} 53. Bh5 {[%emt 0:00:04]} g4 {[%emt 0:00:10]} 54. Rg7 {[%emt 0:00:02]} Rcc4 {[%emt 0:00:08]} 55. Rd2 {[%emt 0:00:03]} Rcd4 {[%emt 0:00:01]} 56. Re2 {[%emt 0:00:01]} Rde4 {[%emt 0:00:01]} 57. Ra2 {[%emt 0:00:01]} Ra4 {[%emt 0:00:02]} 58. Re2 {[%emt 0:00:02]} Rae4 {[%emt 0:00:04]} 59. Bg6+ {[%emt 0:00:12]} Kf6 {[%emt 0:00:00]} 60. Bxe4 {[%emt 0:00:03]} Kxg7 {[%emt 0:00:30]} 61. Kg3 {[%emt 0:00:01]} Rf6 {[%emt 0:00:00]} 62. Rd2 {[%emt 0:00:04]} Re6 {[%emt 0:00:00]} 63. Bf5 {[%emt 0:00:02]} Re5 {[%emt 0:00:00]} 64. Kxg4 {[%emt 0:00:14]} d5 {[%emt 0:00:00]} 65. Ra2 {[%emt 0:00:02]} Kf6 {[%emt 0:00:11]} 66. Ra6+ {[%emt 0:00:05]} Ke7 {[%emt 0:00:02]} 67. Kf4 {[%emt 0:00:04]} Re1 {[%emt 0:00:01]} 68. Rc6 {[%emt 0:00:03]} c4 {[%emt 0:00:07]} 69. Bg4 {[%emt 0:00:08]} Re4+ {[%emt 0:00:03]} 70. Kf3 {[%emt 0:00:05]} Re5 {[%emt 0:00:09]} 71. Kf4 {[%emt 0:00:06]} Re4+ {[%emt 0:00:00]} 72. Kf5 {[%emt 0:00:01]} Kd7 {[%emt 0:00:03]} 73. Rc5 {[%emt 0:00:08]} Kd6 {[%emt 0:00:02]} 74. Rc8 {[%emt 0:00:01]} Re5+ {[%emt 0:00:01]} 75. Kf4 {[%emt 0:00:01]} Re7 {[%emt 0:00:03]} 76. Bf3 {[%emt 0:00:03]} Rc7 {[%emt 0:00:07]} 77. Rd8+ {[%emt 0:00:02]} Rd7 {[%emt 0:00:01]} 78. Ra8 {[%emt 0:00:03]} Kc5 {[%emt 0:00:03]} 79. Ra5+ {[%emt 0:00:02]} Kb4 {[%emt 0:00:02]} 80. Ra8 {[%emt 0:00:06]} d4 {[%emt 0:00:01]} 81. Bg4 {[%emt 0:00:12]} Re7 {[%emt 0:00:03]} 82. Bf5 {[%emt 0:00:11]} d3 {[%emt 0:00:02]} 83. Be4 {[%emt 0:00:07]} d2 {[%emt 0:00:07]} 84. Rd8 {[%emt 0:00:06]} Kc3 {[%emt 0:00:31]} 85. Ke3 {[%emt 0:00:20]} Rxe4+ {[%emt 0:00:17]} 86. Kxe4 {[%emt 0:00:05]} Kc2 {[%emt 0:00:01]} 87. Ke3 {[%emt 0:00:05]} d1=Q {[%emt 0:00:08]} 88. Rxd1 {[%emt 0:00:02]} Kxd1 {[%emt 0:00:02]} 89. Kd4 {[%emt 0:00:01]} Kc2 {[%emt 0:00:01]} 90. Kxc4 {[%emt 0:00:01]} 1/2-1/2

[Event "Grand Prix Romania 1st Stage 2024"]
[Site "Bucuresti"]
[Date "2024.03.24"]
[Round "8.19"]
[White "Fridman, Daniel"]
[Black "Nastase, Robert-Paul"]
[Result "1-0"]
[ECO "E06"]
[WhiteElo "2590"]
[BlackElo "2226"]
[Annotator "TA"]
[PlyCount "71"]
[EventDate "2024.03.20"]
[EventType "swiss"]
[EventCountry "ROU"]
[SourceTitle "playchess.com"]
[Source "ChessBase"]
[SourceQuality "1"]
[TimeControl "900+5"]

{[%evp 20,71,45,55,50,30,60,68,55,23,45,28,22,33,28,20,45,53,61,-58,-51,-67,-39,-66,-57,-81,-75,-108,-78,-88,-40,-39,-27,-46,-52,-40,-47,-47,-43,-62,-53,-58,-54,-56,0,-31,8,0,146,164,337,329,583,578]} 1. Nf3 {[%emt 0:00:02]} d5 {[%emt 0:00:08]} 2. g3 {[%emt 0:00:03]} e6 {[%emt 0:00:09]} 3. Bg2 {[%emt 0:00:06]} Nf6 {[%emt 0:00:23]} 4. d4 {[%emt 0:00:03]} c5 {[%emt 0:00:18]} 5. O-O {[%emt 0:00:04]} Nc6 {[%emt 0:00:06]} 6. c4 {[%emt 0:00:04]} Be7 {[%emt 0:00:20]} 7. cxd5 {[%emt 0:00:03]} Nxd5 {[%emt 0:00:12]} 8. dxc5 {[%emt 0:00:14]} Bxc5 {[%emt 0:00:04]} 9. a3 {[%emt 0:00:03]} O-O {[%emt 0:00:43]} 10. Qc2 {[%emt 0:00:03]} Be7 {[%emt 0:00:09]} 11. Rd1 {[%emt 0:00:02] e4 would now be deadly.} Bd7 {[%emt 0:01:07]} 12. e4 {[%emt 0:00:03][%cal Be2e4,Be4e5][%mdl 32]} Nf6 {[%emt 0:00:29]} 13. Nc3 {[%emt 0:00:03]} Qc7 {[%emt 0:02:25] White is slightly better.} 14. Qe2 {[%emt 0:00:27]} Rad8 {[%emt 0:03:13]} 15. e5 {[%emt 0:01:33][%cal Oc3b5] Strongly threatening Nb5!} Nd5 $1 {[%emt 0:00:17]} 16. Bd2 {[%emt 0:00:46]} Nxc3 {[%emt 0:01:36]} 17. Bxc3 {[%emt 0:00:03]} Bc8 {[%emt 0:00:01]} 18. Nd2 {[%emt 0:00:42]} b6 {[%emt 0:00:36]} 19. Ne4 {[%emt 0:00:05]} (19. Rac1 $14) 19... Nxe5 $15 {[%emt 0:00:50]} 20. Qh5 {[%emt 0:00:03]} Ng6 {[%emt 0:00:21]} 21. Rdc1 {[%emt 0:00:13][%cal Oc3g7] Threatens to win with Bxg7!} Qb8 {[%emt 0:00:06]} 22. h4 {[%emt 0:00:13]} Bb7 {[%emt 0:00:58]} 23. Ng5 {[%emt 0:00:03] [#]} Bxg5 $1 {[%emt 0:00:04]} 24. hxg5 {[%emt 0:00:02]} e5 {[%emt 0:00:07]} (24... Qa8 $17 25. Bxb7 Qxb7) 25. Re1 {[%emt 0:00:43]} Rfe8 {[%emt 0:00:04]} 26. Be4 {[%emt 0:00:07]} Bxe4 {[%emt 0:00:25]} 27. Rxe4 {[%emt 0:00:03]} Rd5 {[%emt 0:00:05]} 28. Kg2 {[%emt 0:00:05]} Qb7 {[%emt 0:00:10][%cal Od5d4] White must now prevent ...Rd4!} 29. f3 {[%emt 0:00:17][%cal Bf2f3,Bf3f4,Bf4f5,Bf5g6][%mdl 32]} a5 {[%emt 0:00:47]} 30. Rh1 {[%emt 0:00:09]} Nf8 {[%emt 0:00:02]} 31. Rhe1 {[%emt 0:00:02]} Ng6 {[%emt 0:00:13]} ({Black should play} 31... Qc6 $15) 32. f4 {[%emt 0:00:26]} b5 {[%emt 0:00:26][%cal Ob5b4]} 33. Bxa5 {[%emt 0:01:04]} f5 {[%emt 0:00:33]} (33... Rc8 $11 34. Bc3 exf4 35. Re8+ Rxe8 36. Rxe8+ Nf8) 34. gxf6 $16 {[%emt 0:00:09] aiming for f5.} gxf6 $2 {[%emt 0:00:03]} (34... Ra8 {was worth a try.}) 35. f5 $18 {[%emt 0:00:18]} Rd4 $2 {[%emt 0:00:02] [#]} (35... Kg7 36. fxg6 hxg6) 36. fxg6 $1 {[%emt 0:09:39] Weighted Error Value: White=0.18 (very precise) /Black=0.39.  Mistake:       	White=1     	Black=5      Inaccurate:     	White=4     	Black=3      OK:         	White=7     	Black=7      Best:        	White=2     	Black=1      Strong:       	---       	Black=2} 1-0

[Event "Grand Prix Romania 1st Stage 2024"]
[Site "Bucuresti"]
[Date "2024.03.24"]
[Round "8.20"]
[White "Grigore, George-Gabriel"]
[Black "Nedelcu, Teodor-Cosmin"]
[Result "1/2-1/2"]
[ECO "D35"]
[WhiteElo "2423"]
[BlackElo "2306"]
[Annotator "TA"]
[PlyCount "69"]
[EventDate "2024.03.20"]
[EventType "swiss"]
[EventCountry "ROU"]
[SourceTitle "playchess.com"]
[Source "ChessBase"]
[SourceQuality "1"]
[TimeControl "900+5"]

{[%evp 13,69,20,25,16,18,20,14,16,17,20,19,28,25,12,15,18,12,8,18,0,27,13,14,24,19,6,54,55,53,-22,-19,-41,-25,-37,-20,-14,0,0,11,15,0,3,6,0,37,29,48,0,0,0,0,-15,0,0,0,-47,0,-11]} 1. d4 {[%emt 0:00:03]} d5 {[%emt 0:00:01]} 2. c4 {[%emt 0:00:03]} e6 {[%emt 0:00:01]} 3. Nc3 {[%emt 0:00:03]} Nf6 {[%emt 0:00:02]} 4. cxd5 {[%emt 0:00:05]} exd5 {[%emt 0:00:01]} 5. Bg5 {[%emt 0:00:02]} c6 {[%emt 0:00:01]} 6. e3 {[%emt 0:00:03]} Bd6 {[%emt 0:00:02]} 7. Bd3 {[%emt 0:00:22]} O-O {[%emt 0:00:02]} 8. Qc2 {[%emt 0:00:05][%cal Od3h7] Und Bxh7+! würde nun gewinnen.} h6 {[%emt 0:00:02]} 9. Bh4 {[%emt 0:00:03]} Re8 {[%emt 0:00:01]} 10. Nge2 {[%emt 0:01:07]} a5 {[%emt 0:00:02]} 11. h3 {[%emt 0:00:23]} Na6 {[%emt 0:00:03][%cal Bb8a6,Ba6c7,Bc7e6][%mdl 32]} 12. a3 {[%emt 0:00:02] Es drohte Nb4} Nc7 {[%emt 0:00:02]} 13. O-O {[%emt 0:00:38]} Ne6 {[%emt 0:00:04]} 14. f4 {[%emt 0:02:51]} Nf8 {[%emt 0:00:14]} 15. Rf3 {[%emt 0:01:00]} Be7 {[%emt 0:00:29]} 16. Kh1 {[%emt 0:00:33]} Ne4 {[%emt 0:00:24]} 17. Bxe7 {[%emt 0:00:31]} Qxe7 {[%emt 0:00:01]} 18. Bxe4 {[%emt 0:00:15]} dxe4 {[%emt 0:00:02]} 19. Rff1 {[%emt 0:00:01]} f5 {[%emt 0:01:16]} (19... Nd7 $11) 20. Rfd1 {[%emt 0:00:44]} Be6 {[%emt 0:00:23]} 21. Na4 {[%emt 0:00:16]} (21. d5 $14 cxd5 22. Nxd5) 21... Nd7 $11 {[%emt 0:00:16]} 22. Rac1 {[%emt 0:00:05]} Nf6 {[%emt 0:00:07]} 23. Nc5 {[%emt 0:00:49]} Bd5 {[%emt 0:00:19]} 24. Nc3 {[%emt 0:00:47]} b6 {[%emt 0:00:21]} 25. N5a4 {[%emt 0:00:06]} b5 {[%emt 0:12:54]} 26. Nb6 {[%emt 0:00:43]} Rab8 {[%emt 0:00:00]} 27. Nbxd5 {[%emt 0:00:01]} cxd5 {[%emt 0:00:00]} 28. Ne2 {[%emt 0:01:43]} b4 {[%emt 0:00:00]} 29. a4 {[%emt 0:00:08]} Qd7 {[%emt 0:00:00]} 30. Qc7 {[%emt 0:02:03]} (30. Qb3 $1 $14 {war vorzuziehen.}) 30... Qxa4 {[%emt 0:00:00][%cal Oe8c8]} 31. Ng3 {[%emt 0:00:01]} Rbc8 {[%emt 0:00:00]} 32. Qb7 {[%emt 0:00:26][%cal Og3f5] [#] Und jetzt Nxf5! wäre schön.} Rb8 {[%emt 0:00:00]} 33. Qc7 {[%emt 0:00:10]} Rbc8 {[%emt 0:00:00]} 34. Qb7 $15 {[%emt 0:00:16][%cal Og3f5] Droht stark Nxf5!} Rb8 {[%emt 0:00:00]} 35. Qc7 {[%emt 0:01:32] Gewichteter Fehlerwert: Weiß=0.08 (makellos) /Schwarz=0.10 (sehr präzise) .  Fehler:       	Weiß=2     	Schwarz=2     Ungenau:       	---       	Schwarz=3     OK:         	Weiß=17    	Schwarz=7     Bester:       	Weiß=1     	Schwarz=1} 1/2-1/2

[Event "Grand Prix Romania 1st Stage 2024"]
[Site "Bucuresti"]
[Date "2024.03.24"]
[Round "8.21"]
[White "Vedmediuc, Serghei"]
[Black "Maximov, Oleg"]
[Result "1/2-1/2"]
[ECO "B27"]
[WhiteElo "2452"]
[BlackElo "2185"]
[Annotator "TA"]
[PlyCount "127"]
[EventDate "2024.03.20"]
[EventType "swiss"]
[EventCountry "ROU"]
[SourceTitle "playchess.com"]
[Source "ChessBase"]
[SourceQuality "1"]
[TimeControl "900+5"]

{[%evp 15,127,36,58,36,38,35,40,22,43,39,48,30,33,13,16,17,20,18,25,25,22,16,70,0,46,36,46,47,38,-4,-20,-10,18,-40,17,14,6,0,0,0,4,0,0,0,0,-12,-7,-18,-18,-27,-26,-28,-16,-33,-22,-15,-27,-22,0,0,0,0,0,0,-3,-126,-52,-52,-52,-52,-52,-52,-52,-52,-52,-52,-12,-13,0,0,0,-37,0,-31,-25,-20,0,0,0,0,0,-8,-8,-8,-8,-8,-8,-7,0,0,0,0,18,13,10,14,16,0,0,0,0,-8,-8,-8]} 1. e4 {[%emt 0:00:03]} c5 {[%emt 0:00:02]} 2. Nf3 {[%emt 0:00:02]} g6 {[%emt 0:00:03]} 3. c3 {[%emt 0:00:23]} Bg7 {[%emt 0:00:05]} 4. d4 {[%emt 0:00:02]} cxd4 {[%emt 0:00:02]} 5. cxd4 {[%emt 0:00:03]} d5 {[%emt 0:00:02]} 6. e5 {[%emt 0:00:02]} Bg4 {[%emt 0:00:04]} 7. Bb5+ {[%emt 0:00:02] B27: Sicilian: 2 Nf3, unusual Black 2nd moves.} Nd7 {[%emt 0:00:03]} 8. Nbd2 {[%emt 0:00:06]} a6 {[%emt 0:00:03]} 9. Be2 {[%emt 0:00:11]} e6 {[%emt 0:00:41]} 10. O-O {[%emt 0:00:12]} Ne7 {[%emt 0:00:03]} 11. h3 {[%emt 0:02:13]} Bxf3 $1 {[%emt 0:00:02]} 12. Nxf3 {[%emt 0:00:02]} Qb6 {[%emt 0:01:01]} 13. Bg5 {[%emt 0:00:44]} Nc6 {[%emt 0:00:14]} 14. Qd2 {[%emt 0:00:08]} O-O {[%emt 0:00:26]} 15. Rfe1 $146 {[%emt 0:03:31]} ({Predecessor:} 15. Rfd1 f6 16. exf6 Nxf6 17. Bxf6 Rxf6 18. Rac1 Raf8 19. Rc3 Rf4 20. Rb3 Qa7 21. Rd3 {1-0 Maximov,D (2497)-Niekras,D (2303) Titled Tuesday intern op 27th Jun Early blitz 2023 (2)}) 15... f6 {[%emt 0:00:48]} 16. exf6 {[%emt 0:00:04]} Nxf6 {[%emt 0:00:01]} 17. Bd3 {[%emt 0:00:19]} Rae8 {[%emt 0:00:05]} 18. Be3 {[%emt 0:03:12]} Nh5 {[%emt 0:04:02]} (18... Nb4 $11) 19. Be2 {[%emt 0:00:28]} (19. Ne5 $1 $14) 19... Qb4 {[%emt 0:01:45]} (19... Nf6 $11 {deserves consideration.}) 20. Qxb4 $14 {[%emt 0:00:33]} Nxb4 {[%emt 0:00:01]} 21. Rec1 {[%emt 0:00:17]} Nf4 {[%emt 0:00:07]} 22. Kf1 {[%emt 0:01:12]} Nxe2 {[%emt 0:01:10]} 23. Kxe2 {[%emt 0:00:02]} Rc8 {[%emt 0:01:09]} 24. Ng5 {[%emt 0:01:16]} (24. Rc3 $11) 24... Rc2+ {[%emt 0:02:16]} ({Better is} 24... Nc2 $15 25. Rab1 Nxd4+ 26. Bxd4 Bxd4 (26... Rxc1 27. Rxc1 Bxd4 28. Nxe6 $15) 27. Rxc8 Rxc8 28. Nxe6 Re8) 25. Rxc2 $11 {[%emt 0:00:25]} Nxc2 {[%emt 0:00:01]} 26. Rd1 {[%emt 0:00:01]} Re8 {[%emt 0:01:11]} 27. Nf3 {[%emt 0:00:04]} Nxe3 {[%emt 0:00:06]} 28. Kxe3 {[%emt 0:00:06]} Rc8 {[%emt 0:00:04]} 29. Kd3 {[%emt 0:00:02]} Bf6 {[%emt 0:00:13]} 30. Ne1 {[%emt 0:00:10]} g5 {[%emt 0:00:11]} 31. Nc2 {[%emt 0:00:08]} Kf7 {[%emt 0:00:01]} 32. Re1 {[%emt 0:00:13]} h5 {[%emt 0:00:03]} 33. g3 {[%emt 0:00:14]} Rc4 {[%emt 0:00:09]} 34. g4 {[%emt 0:00:11]} Rc8 {[%emt 0:00:05]} 35. Ne3 {[%emt 0:00:12]} hxg4 {[%emt 0:00:17]} 36. hxg4 {[%emt 0:00:02]} Rh8 {[%emt 0:00:09]} 37. Rc1 {[%emt 0:00:03]} Bd8 {[%emt 0:00:01]} 38. Rc8 {[%emt 0:00:04]} Ke7 {[%emt 0:00:12]} 39. Rb8 {[%emt 0:00:03]} b6 {[%emt 0:00:04]} 40. b4 {[%emt 0:00:22]} (40. Nc2 $11 {remains equal.}) 40... Rh1 {[%emt 0:00:03]} (40... Rf8 $17 41. Rb7+ Kd6) 41. Ra8 {[%emt 0:00:01]} a5 $1 {[%emt 0:00:01]} 42. bxa5 {[%emt 0:00:04]} bxa5 {[%emt 0:00:00]} 43. Ra7+ {[%emt 0:00:01]} Kd6 {[%emt 0:00:10]} 44. Rb7 {[%emt 0:00:08]} Ra1 {[%emt 0:00:06]} 45. Rb2 {[%emt 0:00:01]} a4 {[%emt 0:00:03]} 46. Nc2 $1 {[%emt 0:00:09]} Rg1 {[%emt 0:00:07]} 47. Ne3 {[%emt 0:00:04]} Ra1 {[%emt 0:00:05]} 48. Nc2 $1 {[%emt 0:00:01]} Rg1 {[%emt 0:00:01]} 49. Rb4 {[%emt 0:00:04]} Rxg4 {[%emt 0:00:09]} 50. Rxa4 {[%emt 0:00:02]} Rg1 {[%emt 0:00:06]} 51. Ra6+ {[%emt 0:00:04]} Kd7 {[%emt 0:00:01]} 52. Nb4 {[%emt 0:00:07]} Rd1+ {[%emt 0:00:05]} 53. Ke3 {[%emt 0:00:08]} g4 {[%emt 0:00:01]} 54. Nc6 {[%emt 0:00:16]} Bg5+ {[%emt 0:00:02]} 55. Ke2 {[%emt 0:00:01]} Rd2+ {[%emt 0:00:03]} 56. Ke1 {[%emt 0:00:03]} Rb2 {[%emt 0:00:23]} 57. Ne5+ {[%emt 0:00:03]} Ke7 {[%emt 0:00:02]} 58. Ra7+ {[%emt 0:00:08]} Ke8 {[%emt 0:00:01]} 59. Nxg4 {[%emt 0:00:08]} Bd2+ {[%emt 0:00:09]} 60. Ke2 {[%emt 0:00:06]} Ba5+ {[%emt 0:00:10]} 61. Ke3 {[%emt 0:00:06]} Rxa2 {[%emt 0:01:20]} 62. Kf3 {[%emt 0:00:08]} Ra3+ {[%emt 0:00:00]} 63. Ne3 {[%emt 0:00:04]} Bb4 {[%emt 0:00:00]} 64. Rxa3 {[%emt 0:00:14]} 1/2-1/2

[Event "Grand Prix Romania 1st Stage 2024"]
[Site "Bucuresti"]
[Date "2024.03.24"]
[Round "8.22"]
[White "Doluhanova, Evgeniya"]
[Black "Nevednichy, Vladislav"]
[Result "0-1"]
[ECO "D04"]
[WhiteElo "2261"]
[BlackElo "2445"]
[Annotator "TA"]
[PlyCount "101"]
[EventDate "2024.03.20"]
[EventType "swiss"]
[EventCountry "ROU"]
[SourceTitle "playchess.com"]
[Source "ChessBase"]
[SourceQuality "1"]
[TimeControl "900+5"]

{[%evp 17,101,0,0,-18,-22,-17,0,0,0,-17,0,0,0,-4,-4,-3,-9,-31,0,-10,-10,-34,-21,-51,-7,-39,0,0,0,0,0,0,0,0,0,-4,0,0,0,0,0,0,0,0,0,0,0,0,0,0,2,0,0,0,0,0,0,0,0,0,0,0,0,0,0,0,0,0,0,-272,-257,-764,-748,-691,-586,-1434,-379,-12836,-1902,-29976,-29977,-29977,-29976,-29979,-29980,-29981]} 1. Nf3 {[%emt 0:00:08]} Nf6 {[%emt 0:00:15]} 2. e3 {[%emt 0:00:05]} g6 {[%emt 0:00:11]} 3. b3 {[%emt 0:00:06]} Bg7 {[%emt 0:00:01]} 4. Bb2 {[%emt 0:00:01]} c5 {[%emt 0:00:03]} 5. d4 {[%emt 0:00:16]} O-O {[%emt 0:00:09]} 6. Be2 {[%emt 0:00:10]} Ne4 {[%emt 0:01:08]} 7. O-O {[%emt 0:00:18]} d5 {[%emt 0:00:02]} 8. c4 {[%emt 0:00:54]} Nc6 {[%emt 0:01:01]} 9. cxd5 {[%emt 0:01:39]} Qxd5 {[%emt 0:00:02]} 10. Nc3 {[%emt 0:00:04]} Nxc3 {[%emt 0:00:04]} 11. Bxc3 {[%emt 0:00:02]} Bf5 {[%emt 0:01:11]} 12. Rc1 {[%emt 0:01:48] The position is equal.} cxd4 {[%emt 0:00:51]} 13. Nxd4 {[%emt 0:00:13]} Nxd4 {[%emt 0:00:26]} 14. Bxd4 {[%emt 0:00:03]} Bxd4 {[%emt 0:00:24]} 15. Bf3 {[%emt 0:00:49] [#]} Be4 {[%emt 0:00:30]} 16. Bxe4 {[%emt 0:00:54]} Qxe4 {[%emt 0:00:01]} 17. exd4 {[%emt 0:02:27]} (17. Qxd4 {simplifies} Qxd4 18. exd4 Rac8 19. Rfd1) 17... Qf4 {[%emt 0:00:56]} 18. Qe2 {[%emt 0:00:50]} e6 {[%emt 0:01:03]} 19. Qe5 {[%emt 0:00:48] Against Rad8} Qd2 {[%emt 0:00:28]} 20. Rc7 {[%emt 0:00:44]} b6 {[%emt 0:00:54]} 21. h4 {[%emt 0:00:22]} Rad8 {[%emt 0:01:02]} 22. Rxa7 {[%emt 0:00:38]} Rxd4 {[%emt 0:00:21]} 23. g3 {[%emt 0:00:09]} Rd5 {[%emt 0:00:05]} 24. Qc7 {[%emt 0:00:10]} b5 {[%emt 0:00:28]} 25. Qc1 {[%emt 0:00:26]} Qd4 {[%emt 0:00:23]} 26. Rc7 {[%emt 0:00:41]} h5 {[%emt 0:00:48]} 27. Re1 {[%emt 0:00:44]} Rf5 {[%emt 0:00:44]} 28. Qe3 {[%emt 0:00:12]} Qxe3 {[%emt 0:01:10]} 29. Rxe3 $11 {[%emt 0:00:02][%mdl 4096] Endgame. KRR-KRR} Ra8 {[%emt 0:00:02]} 30. Re2 {[%emt 0:00:12]} Rd5 {[%emt 0:00:04]} 31. Kg2 {[%emt 0:00:15]} Ra6 {[%emt 0:00:05]} 32. Rec2 {[%emt 0:00:17]} Kg7 {[%emt 0:00:07]} 33. Rb7 {[%emt 0:00:03]} e5 {[%emt 0:00:18]} 34. Rcc7 {[%emt 0:01:01]} Rf6 {[%emt 0:00:01] [#] Strongly threatening ...Rd2.} 35. Rd7 {[%emt 0:00:02]} Rxd7 {[%emt 0:00:12]} 36. Rxd7 {[%emt 0:00:01] KR-KR} Ra6 {[%emt 0:00:29]} 37. Rd5 {[%emt 0:00:02]} e4 {[%emt 0:00:06]} 38. Rd4 {[%emt 0:00:18]} f5 {[%emt 0:00:06]} 39. a4 {[%emt 0:00:01]} bxa4 {[%emt 0:00:06]} 40. bxa4 {[%emt 0:00:01]} Kf6 {[%emt 0:00:03]} 41. f3 {[%emt 0:00:10]} Ke5 {[%emt 0:00:05]} 42. Rb4 {[%emt 0:00:01]} Rc6 {[%emt 0:00:07]} 43. f4+ $2 {[%emt 0:00:16][%mdl 8192]} (43. Rb2 $11 {and White has nothing to worry.}) 43... Kd5 $19 {[%emt 0:00:01] White must now prevent ...Rc2+.} 44. a5 $2 {[%emt 0:00:05]} (44. Rb2) 44... Rc2+ {[%emt 0:00:02]} 45. Kf1 {[%emt 0:00:10]} Ra2 {[%emt 0:00:02][%cal Oe4e3] ...e3! is the strong threat.} 46. Rb6 {[%emt 0:00:03]} Rxa5 $2 {[%emt 0:00:06]} (46... e3 {...Ke4 would now be deadly.} 47. Rb4 Kc5 (47... Rxa5 48. Ke2 $11)) 47. Rxg6 $2 {[%emt 0:00:03]} (47. Ke2 Ra2+ 48. Ke3 Ra3+ 49. Kf2 Rf3+ 50. Kg2) 47... Kd4 {[%emt 0:00:07]} (47... Ra2 $142 48. Rg8 Kd4) 48. Rb6 {[%emt 0:00:08]} Ra1+ {[%emt 0:00:05] Black mates.} 49. Kf2 {[%emt 0:00:02]} e3+ {[%emt 0:00:15]} 50. Ke2 {[%emt 0:00:02]} Ra2+ {[%emt 0:00:02]} 51. Ke1 {[%emt 0:00:24] Weighted Error Value: White=0.67/Black=0.41.  Loses game:     	White=1     	---        Mistake:       	White=2     	---        Inaccurate:     	White=3     	Black=3      OK:         	White=12    	Black=17     Best:        	---       	Black=2} 0-1